bitfinex-derivatives/quotes_ETHF0:USTF0_20250709
["timestamp","ask_amount","ask_price","bid_price","bid_amount"]
[1752073364149,0.18531997,2652.2,2652.1,0.75402]
[1752073364353,1.88486,2652.4,2652.0,3.2078]
[1752073364648,0.75402,2652.1,2652.0,3.96185]
[1752073366153,0.75402,2652.1,2652.0,3.2078]
[1752073366354,1.88516,2652.0,2651.7,3.2078]
[1752073366552,0.75411,2651.8,2651.7,3.2078]
[1752073367056,0.75411,2651.8,2651.7,3.96194]
[1752073368255,0.75411,2651.8,2651.7,3.2078]
[1752073368560,0.75411,2651.8,2651.7,3.96194]
[1752073369056,0.75407,2652.0,2651.9,0.75404]
[1752073369454,4.26967,2652.3,2652.1,0.75402]
[1752073369455,0.75401,2652.2,2652.1,0.75402]
[1752073369656,0.75401,2652.2,2652.1,3.2078]
[1752073369856,2.3847,2652.3,2652.2,0.754]
[1752073370449,0.75394,2652.4,2652.3,0.75394]
[1752073370757,0.75398,2652.3,2652.2,0.75398]
[1752073370956,0.754,2652.2,2652.1,3.96181]
[1752073371257,0.75399,2652.3,2652.2,0.75399]
[1752073371557,42.51033,2652.5,2652.4,0.75394]
[1752073371757,0.75391,2652.5,2652.4,0.75394]
[1752073371952,39.80958106,2653.2,2652.4,0.75394]
[1752073371953,3.35781246,2653.4,2653.3,0.75368]
[1752073372154,4.47772762,2653.7,2653.3,0.75368]
[1752073372155,41.55358,2653.7,2653.3,3.2078]
[1752073372354,41.55358,2653.7,2653.0,1.88443]
[1752073372355,1.51835839,2653.6,2653.0,1.88443]
[1752073372549,2.1721,2653.8,2653.5,3.2078]
[1752073372750,2.27152317,2653.7,2653.5,3.96141]
[1752073372959,43.1209,2653.7,2653.5,3.2078]
[1752073373157,0.7536,2653.6,2653.5,3.2078]
[1752073373356,41.55359,2653.7,2653.5,3.96143]
[1752073373661,43.0224,2653.7,2653.6,0.7536]
[1752073373855,2.1721,2653.8,2653.7,0.75357]
[1752073374060,5.21359814,2654.5,2653.8,0.75353]
[1752073374061,27.522,2654.3,2653.8,0.75353]
[1752073374257,0.75348,2654.1,2653.9,0.7535]
[1752073374459,43.9788,2654.2,2653.8,3.96133]
[1752073374659,71.4988,2654.2,2654.1,3.2078]
[1752073374858,44.73223,2654.2,2654.1,3.2078]
[1752073375263,0.75354,2653.9,2653.8,3.2078]
[1752073375460,28.4694,2653.9,2653.5,3.2078]
[1752073375763,0.75369,2653.3,2653.2,3.2078]
[1752073376165,0.75367,2653.4,2653.2,3.9615]
[1752073376360,29.8063,2653.6,2653.2,3.96149]
[1752073376361,0.75368,2653.3,2653.2,3.96149]
[1752073376560,2.2953,2653.6,2653.2,3.96149]
[1752073376761,0.75367,2653.4,2653.2,3.96149]
[1752073376957,2.2953,2653.6,2653.2,3.2078]
[1752073377162,0.75361,2653.6,2653.5,3.2078]
[1752073377564,0.75371,2653.3,2653.2,3.2078]
[1752073379263,0.75368,2653.4,2653.2,3.2078]
[1752073379566,0.75368,2653.4,2653.2,3.9615]
[1752073379772,0.75365,2653.5,2653.3,0.75366]
[1752073379968,0.75367,2653.4,2653.3,0.75366]
[1752073380274,0.75364,2653.5,2653.4,0.75363]
[1752073380776,0.75367,2653.4,2653.3,0.75366]
[1752073380976,0.75368,2653.3,2653.2,3.2078]
[1752073381170,3.06308,2653.3,2653.2,3.2078]
[1752073381376,0.75377,2653.0,2652.9,3.9616]
[1752073381576,3.01294,2653.2,2653.1,0.75374]
[1752073381776,0.75377,2653.1,2653.0,0.75375]
[1752073381976,5.32233,2653.2,2653.1,0.75374]
[1752073382170,27.491,2653.4,2653.0,1.88438]
[1752073382171,0.75368,2653.4,2653.0,1.88438]
[1752073382372,0.75368,2653.4,2653.3,3.2078]
[1752073382675,1.71008,2653.4,2653.3,3.2078]
[1752073383070,29.19908,2653.4,2653.3,3.2078]
[1752073384072,1.71008,2653.4,2653.3,3.2078]
[1752073384274,29.19408,2653.4,2653.3,3.2078]
[1752073384475,28.23768,2653.4,2653.3,3.2078]
[1752073384674,28.23768,2653.4,2653.3,3.96148]
[1752073384873,28.23668,2653.4,2653.3,3.96148]
[1752073385072,0.75368,2653.4,2653.3,3.96148]
[1752073385377,0.75368,2653.4,2653.3,3.2078]
[1752073385574,1.71008,2653.4,2653.3,3.2078]
[1752073385775,31.39978,2653.4,2653.3,3.2078]
[1752073385978,30.44338,2653.4,2653.3,3.2078]
[1752073386278,0.75366,2653.5,2653.4,0.75363]
[1752073386577,0.9564,2653.7,2653.3,3.2078]
[1752073386578,1.88395,2653.7,2653.3,3.2078]
[1752073386778,0.75366,2653.4,2653.3,3.96146]
[1752073386975,0.75365,2653.5,2653.4,0.75363]
[1752073387570,0.75366,2653.4,2653.3,3.2078]
[1752073387776,0.75368,2653.3,2653.2,3.2078]
[1752073388079,0.75377,2653.0,2652.9,3.2078]
[1752073388575,42.51017,2653.0,2652.9,3.2078]
[1752073388777,69.02677,2653.0,2652.9,3.2078]
[1752073388971,69.02577,2653.0,2652.9,3.2078]
[1752073389280,41.55377,2653.0,2652.9,3.9616]
[1752073389879,41.55377,2653.0,2652.9,3.2078]
[1752073390081,41.55377,2653.0,2652.9,3.9616]
[1752073391384,40.8,2653.0,2652.9,3.9616]
[1752073391686,41.55377,2653.0,2652.9,3.2078]
[1752073391977,27.466,2653.1,2652.9,3.2078]
[1752073391978,0.9528,2653.7,2652.9,9.37407814]
[1752073392185,29.73141753,2653.6,2653.5,3.96142]
[1752073392373,70.53041753,2653.6,2653.5,3.2078]
[1752073392577,45.38691753,2653.6,2653.5,3.2078]
[1752073392773,72.84991753,2653.6,2653.5,3.2078]
[1752073393877,45.38691753,2653.6,2653.5,3.2078]
[1752073394280,0.75371,2653.3,2653.2,3.2078]
[1752073394484,2.26752753,2653.3,2653.2,3.96148]
[1752073395285,0.75371,2653.3,2653.2,3.96148]
[1752073395483,2.27124432,2653.4,2653.3,0.75368]
[1752073395786,29.72924561,2653.4,2653.3,0.75368]
[1752073396186,0.75368,2653.3,2653.2,3.96149]
[1752073396484,2.27172306,2653.3,2653.2,3.96149]
[1752073396687,2.27166213,2653.3,2653.2,3.96149]
[1752073396875,2.27165332,2653.3,2653.2,3.96149]
[1752073397080,0.75368,2653.3,2653.2,3.96149]
[1752073397282,0.75368,2653.4,2653.3,0.75365]
[1752073397585,0.75365,2653.5,2653.4,0.75362]
[1752073397785,1.38395,2653.5,2653.4,1.43032]
[1752073397988,1.38395,2653.5,2653.4,0.6767]
[1752073398377,1.38395,2653.5,2653.4,1.43036]
[1752073398580,28.20362,2653.6,2653.5,0.75363]
[1752073398777,29.72484145,2653.6,2653.5,3.96143]
[1752073398981,30.35514145,2653.6,2653.5,4.63813]
[1752073399382,30.35214145,2653.6,2653.5,3.96143]
[1752073399580,30.35214145,2653.6,2653.5,4.63813]
[1752073399782,2.90514145,2653.6,2653.5,4.63813]
[1752073399986,30.34914145,2653.6,2653.5,4.63813]
[1752073401289,31.30194145,2653.6,2653.5,3.96143]
[1752073401489,30.34914145,2653.6,2653.5,4.63813]
[1752073402295,29.59052145,2653.6,2653.5,4.63813]
[1752073402789,30.34412145,2653.6,2653.5,4.63813]
[1752073403390,30.34412145,2653.6,2653.5,3.2078]
[1752073403784,31.29692145,2653.6,2653.5,3.2078]
[1752073404593,30.34412145,2653.6,2653.5,3.2078]
[1752073405489,30.34412145,2653.6,2653.5,3.8845]
[1752073405787,30.34412145,2653.6,2653.5,3.2078]
[1752073405993,30.33212145,2653.6,2653.5,3.2078]
[1752073406193,28.1806,2653.6,2653.5,3.96143]
[1752073406391,3.35781246,2654.2,2654.0,0.75346]
[1752073406596,3.35781246,2654.2,2653.8,0.75352]
[1752073406597,0.75354,2653.9,2653.8,0.75352]
[1752073406789,1.5235778,2654.0,2653.9,0.75351]
[1752073406985,28.17948,2654.0,2653.9,1.43021]
[1752073407287,2.15400295,2654.0,2653.9,1.43021]
[1752073407492,29.57800295,2654.0,2653.9,1.43021]
[1752073407694,30.33148295,2654.0,2653.9,1.43021]
[1752073407992,0.75351,2653.9,2653.8,3.2078]
[1752073408192,5.37445151,2653.9,2653.5,3.2078]
[1752073408390,2.8987,2653.9,2653.8,4.63804]
[1752073408595,3.02191,2653.9,2653.8,4.63804]
[1752073408787,3.65221,2653.9,2653.8,3.8845]
[1752073409192,3.65221,2653.9,2653.8,3.2078]
[1752073409401,1.88392,2653.7,2653.5,3.2078]
[1752073409694,0.75357,2653.7,2653.6,4.63809]
[1752073409894,28.80087,2653.7,2653.6,3.2078]
[1752073410493,28.16957,2653.7,2653.6,4.63809]
[1752073410688,28.79987,2653.7,2653.6,4.63809]
[1752073410999,0.75352,2653.9,2653.8,0.75354]
[1752073411901,0.7535,2654.0,2653.9,0.75348]
[1752073412197,1.3838,2654.0,2653.9,3.96128]
[1752073412397,0.7535,2654.0,2653.9,3.96128]
[1752073412598,5.4109,2654.5,2653.9,6.51650826]
[1752073412789,5.4109,2654.5,2654.4,3.2078]
[1752073412790,31.29414,2654.5,2654.4,3.2078]
[1752073412995,33.44562079,2654.5,2654.4,3.2078]
[1752073413295,5.08482079,2654.5,2654.4,3.8845]
[1752073413594,32.49082079,2654.5,2654.4,3.8845]
[1752073413799,5.08482079,2654.5,2654.4,3.8845]
[1752073414097,30.96764,2654.5,2654.4,3.8845]
[1752073414699,3.56364,2654.5,2654.4,3.8845]
[1752073414901,30.96664,2654.5,2654.4,3.8845]
[1752073415097,30.96664,2654.5,2654.4,3.2078]
[1752073415293,0.75343,2654.2,2654.1,3.2078]
[1752073415497,29.73653,2654.2,2654.1,3.2078]
[1752073415700,31.89243,2654.2,2654.1,3.2078]
[1752073416195,4.49243,2654.2,2654.1,3.2078]
[1752073416394,31.88943,2654.2,2654.1,3.2078]
[1752073416996,1.8837,2654.1,2653.8,3.2078]
[1752073417303,1.38381,2653.9,2653.8,3.2078]
[1752073417902,5.75911,2653.9,2653.8,3.2078]
[1752073418603,6.71191,2653.9,2653.8,3.2078]
[1752073418803,33.15011,2653.9,2653.8,3.8845]
[1752073419202,33.15011,2653.9,2653.8,3.2078]
[1752073419407,5.75911,2653.9,2653.8,3.2078]
[1752073419607,33.14811,2653.9,2653.8,3.2078]
[1752073419998,0.7536,2653.6,2653.5,3.2078]
[1752073420307,0.7536,2653.6,2653.5,3.8845]
[1752073420800,1.3839,2653.6,2653.5,3.2078]
[1752073421000,0.75373,2653.2,2653.1,0.75371]
[1752073421303,0.75373,2653.2,2653.1,4.60054]
[1752073421500,1.41133,2653.2,2653.1,3.2078]
[1752073421702,1.41133,2653.2,2653.1,3.8468]
[1752073421904,1.41133,2653.2,2653.1,3.2078]
[1752073422305,1.41133,2653.2,2653.1,3.96154]
[1752073422501,1.41133,2653.2,2653.1,3.2078]
[1752073423302,1.41133,2653.2,2653.1,0.639]
[1752073423706,1.41133,2653.2,2653.1,3.8468]
[1752073424502,40.8,2653.4,2653.1,3.8468]
[1752073424702,3.2078,2653.9,2653.6,0.75358]
[1752073424905,2.3588,2654.1,2653.5,3.2078]
[1752073425206,2.27455991,2654.0,2653.9,0.75349]
[1752073425402,2.17864991,2654.0,2653.9,0.75349]
[1752073425598,1.52104991,2654.0,2653.9,0.75349]
[1752073425809,1.52104991,2654.0,2653.9,3.96129]
[1752073426001,3.11226,2654.1,2654.0,0.75348]
[1752073426204,0.75348,2654.0,2653.9,0.7535]
[1752073426399,1.41108,2654.0,2653.9,0.7535]
[1752073427610,2.3588,2654.1,2654.0,0.75348]
[1752073427810,3.0164,2654.1,2653.9,0.75349]
[1752073428008,0.75351,2654.0,2653.9,0.75349]
[1752073428205,0.75351,2653.9,2653.8,0.75352]
[1752073428405,0.75351,2653.9,2653.8,0.639]
[1752073429005,3.00591,2653.9,2653.8,0.639]
[1752073429812,0.75363,2653.5,2653.4,0.75363]
[1752073430109,0.75362,2653.6,2653.5,0.75363]
[1752073430307,0.75365,2653.5,2653.3,3.2078]
[1752073430512,1.41125,2653.5,2653.4,0.75365]
[1752073430714,1.41125,2653.5,2653.4,1.39265]
[1752073431308,0.75365,2653.4,2653.3,3.2078]
[1752073431509,1.41125,2653.4,2653.3,3.96148]
[1752073431709,1.41125,2653.4,2653.3,4.60048]
[1752073432009,1.41125,2653.4,2653.3,3.2078]
[1752073432209,1.41125,2653.4,2653.3,4.60048]
[1752073432409,2.98142,2653.6,2653.5,0.75363]
[1752073432617,3.63902,2653.6,2653.5,1.39263]
[1752073432816,2.8854,2653.6,2653.5,1.39263]
[1752073433015,3.639,2653.6,2653.5,1.39263]
[1752073434417,1.4112,2653.6,2653.5,1.39263]
[1752073434616,0.6576,2653.6,2653.5,1.39263]
[1752073434816,1.4112,2653.6,2653.5,1.38658724]
[1752073435217,0.6576,2653.6,2653.5,1.38658724]
[1752073436110,0.7536,2653.6,2653.5,0.74758724]
[1752073436307,1.4112,2653.6,2653.5,1.38658724]
[1752073436507,0.75354,2653.9,2653.5,2.52301]
[1752073436709,0.75354,2653.8,2653.7,3.96135]
[1752073436909,1.41114,2653.8,2653.7,3.96135]
[1752073437220,0.75354,2653.8,2653.7,3.96135]
[1752073437421,1.41114,2653.8,2653.7,3.96135]
[1752073438016,1.41114,2653.8,2653.7,4.60035]
[1752073438325,0.75354,2653.8,2653.7,4.60035]
[1752073438524,1.41114,2653.8,2653.7,4.60035]
[1752073439130,0.9505,2654.4,2653.8,1.88386]
[1752073439328,0.75348,2654.1,2654.0,3.96126]
[1752073439522,1.41108,2654.1,2654.0,4.60026]
[1752073439722,2.93312194,2654.1,2654.0,4.60026]
[1752073440329,1.52204194,2654.1,2654.0,4.60026]
[1752073440528,0.75344,2654.2,2654.1,0.75341]
[1752073440730,1.41103,2654.2,2654.1,0.75346]
[1752073441028,0.75354,2653.8,2653.7,3.2078]
[1752073441928,3.01844,2653.8,2653.7,3.96137]
[1752073442128,3.01844,2653.8,2653.7,3.2078]
[1752073443923,2.1507,2653.9,2653.7,3.8468]
[1752073444236,0.75348,2654.1,2654.0,0.75345]
[1752073444533,2.91215628,2654.1,2654.0,3.2078]
[1752073444730,1.41108,2654.1,2654.0,3.2078]
[1752073446029,1.41108,2654.1,2654.0,3.8468]
[1752073446234,1.41108,2654.1,2654.0,3.2078]
[1752073447732,1.6081,2654.1,2653.7,0.75355]
[1752073447939,0.75356,2653.8,2653.7,0.75355]
[1752073448133,1.41116,2653.8,2653.7,1.39255]
[1752073449338,1.41116,2653.8,2653.7,0.639]
[1752073449742,1.41116,2653.8,2653.7,1.39257]
[1752073451537,1.41116,2653.8,2653.7,0.639]
[1752073451742,1.41116,2653.8,2653.7,1.39257]
[1752073452638,1.43526,2653.8,2653.7,1.39257]
[1752073453142,0.75356,2653.8,2653.7,1.39257]
[1752073453437,0.75353,2653.9,2653.8,0.75351]
[1752073453641,1.43523,2653.9,2653.8,1.43041]
[1752073453841,1.43523,2653.9,2653.8,0.6769]
[1752073454038,0.75353,2653.9,2653.8,0.6769]
[1752073454244,0.75353,2653.9,2653.8,1.43044]
[1752073454942,1.43523,2653.9,2653.8,1.43044]
[1752073455344,2.93779327,2653.9,2653.8,1.43044]
[1752073455644,1.43523,2653.9,2653.8,1.43044]
[1752073456740,0.75357,2653.8,2653.6,3.2078]
[1752073457043,1.43527,2653.7,2653.6,3.8847]
[1752073457244,1.43527,2653.7,2653.6,4.6383]
[1752073457445,1.43527,2653.7,2653.6,1.4305]
[1752073457945,1.43527,2653.7,2653.6,0.6769]
[1752073458344,1.43527,2653.7,2653.6,1.4305]
[1752073458845,1.43527,2653.7,2653.6,4.6383]
[1752073459341,2.151,2654.0,2653.6,7.51860935]
[1752073459549,0.75348,2654.1,2654.0,0.75346]
[1752073459738,1.50277815,2654.2,2654.1,0.75345]
[1752073459935,0.75343,2654.2,2654.1,2.88643]
[1752073460140,2.25629579,2654.2,2654.1,2.88643]
[1752073460343,0.75337,2654.4,2654.3,0.75337]
[1752073460537,1.50275304,2654.5,2654.4,0.75337]
[1752073460740,1.50295492,2654.5,2654.4,2.50330935]
[1752073460943,1.0165,2655.3,2654.7,1.88321]
[1752073460944,3.35781246,2655.3,2654.7,1.88321]
[1752073461141,0.75311,2655.3,2655.2,3.2078]
[1752073461447,1.43481,2655.3,2655.2,3.2078]
[1752073462141,1.43481,2655.3,2655.2,3.8847]
[1752073462538,1.43481,2655.3,2655.2,3.2078]
[1752073462739,1.43481,2655.3,2655.2,3.8847]
[1752073463648,1.43481,2655.3,2655.2,3.2078]
[1752073463949,1.43481,2655.3,2655.2,3.8847]
[1752073464449,1.43481,2655.3,2654.9,3.2078]
[1752073464450,0.7532,2655.0,2654.9,3.2078]
[1752073464751,0.7532,2655.0,2654.9,3.8847]
[1752073465149,0.7532,2655.0,2654.9,4.63793]
[1752073465340,0.7532,2655.0,2654.9,6.79013]
[1752073465545,0.75319,2655.1,2655.0,0.75319]
[1752073465745,0.75319,2655.1,2655.0,2.90539]
[1752073465942,0.75316,2655.2,2655.0,3.8269]
[1752073466146,0.75317,2655.1,2655.0,3.8269]
[1752073466449,1.43487,2655.1,2655.0,3.8269]
[1752073466852,0.75317,2655.1,2655.0,3.8269]
[1752073467044,1.43487,2655.1,2655.0,1.6747]
[1752073467444,0.75317,2655.1,2655.0,1.4301]
[1752073467651,1.43487,2655.1,2655.0,0.6769]
[1752073468250,0.75316,2655.2,2655.0,2.93626399]
[1752073468453,0.75316,2655.2,2655.1,0.50838399]
[1752073468647,1.43486,2655.2,2655.1,1.18528399]
[1752073468848,0.75316,2655.2,2655.1,1.18528399]
[1752073469052,1.43486,2655.2,2655.1,1.18528399]
[1752073473653,29.69036,2655.2,2655.1,0.50838399]
[1752073473853,0.75334,2654.5,2654.4,3.2078]
[1752073474054,0.7534,2654.3,2654.2,2.2631]
[1752073474255,0.75343,2654.2,2654.1,3.96123]
[1752073474556,0.75342,2654.3,2654.2,0.75342]
[1752073474857,0.75342,2654.3,2654.2,4.69122]
[1752073476952,1.43512,2654.3,2654.2,2.94]
[1752073477359,0.75342,2654.3,2654.2,2.94]
[1752073477554,1.43512,2654.3,2654.2,2.94]
[1752073477861,1.43512,2654.3,2654.2,3.69343]
[1752073478055,0.75343,2654.2,2654.1,0.75344]
[1752073478262,0.75344,2654.2,2654.1,0.6769]
[1752073478450,0.6817,2654.2,2653.8,5.5387]
[1752073478652,9.07832089,2653.9,2653.3,0.9978]
[1752073478850,3.2078,2653.5,2653.3,1.75147]
[1752073479057,0.75362,2653.5,2653.4,0.6769]
[1752073481160,3.2078,2653.7,2653.4,0.6769]
[1752073481563,46.32942089,2653.8,2653.5,0.7536]
[1752073481756,47.08298089,2653.8,2653.4,1.43053]
[1752073481952,47.08299089,2653.8,2653.4,1.43053]
[1752073482159,0.75357,2653.7,2653.5,0.75362]
[1752073482468,46.2431,2653.8,2653.7,0.75357]
[1752073482761,46.99664,2653.8,2653.7,0.75357]
[1752073483259,46.2431,2653.8,2653.2,1.88428]
[1752073483452,0.6781,2653.5,2653.0,1.88438]
[1752073483656,1.43172,2653.5,2653.0,1.88442]
[1752073483858,2.36402,2653.5,2653.0,0.9326]
[1752073484057,2.36402,2653.5,2653.3,0.75366]
[1752073484258,1.6104,2653.5,2653.4,0.75365]
[1752073484859,2.36402,2653.5,2653.4,0.75365]
[1752073485262,1.6104,2653.5,2653.4,0.75365]
[1752073485464,2.36403,2653.5,2652.9,1.88448]
[1752073485665,2.36403,2653.5,2653.4,0.75363]
[1752073486164,1.6104,2653.5,2653.4,1.43343]
[1752073486365,1.6104,2653.5,2653.4,0.75363]
[1752073486566,2.36402,2653.5,2653.4,0.75363]
[1752073486766,3.7871,2653.5,2653.4,1.43343]
[1752073487563,4.54072,2653.5,2653.4,1.43343]
[1752073487862,1.43172,2653.5,2653.4,0.6798]
[1752073488062,0.6781,2653.5,2653.4,1.43345]
[1752073488867,1.43172,2653.5,2653.4,1.43345]
[1752073489061,1.43172,2653.5,2653.4,0.75365]
[1752073489261,1.43172,2653.5,2653.4,1.43345]
[1752073489658,1.43172,2653.5,2653.4,0.6798]
[1752073490363,0.6781,2653.5,2653.4,0.6798]
[1752073490568,1.43172,2653.5,2653.4,0.6798]
[1752073490760,0.75368,2653.4,2653.3,0.75366]
[1752073490966,1.43175,2653.4,2653.3,1.43348]
[1752073492267,1.43175,2653.4,2653.3,0.6798]
[1752073492464,1.43175,2653.4,2653.3,1.43348]
[1752073493068,1.43175,2653.4,2653.3,0.6798]
[1752073493765,1.43175,2653.4,2653.3,1.43348]
[1752073493968,1.43175,2653.4,2653.3,0.6798]
[1752073494169,1.43175,2653.4,2653.3,1.43348]
[1752073494364,1.43175,2653.4,2653.3,0.6798]
[1752073495265,0.75368,2653.3,2653.2,3.2078]
[1752073495464,3.09598,2653.3,2653.2,3.8876]
[1752073495863,0.75377,2653.0,2652.9,0.9326]
[1752073496171,0.75377,2653.0,2652.9,4.8202]
[1752073496672,0.75377,2653.0,2652.9,5.57399]
[1752073497066,0.75377,2653.0,2652.9,4.64139]
[1752073497967,0.75377,2653.0,2652.9,3.8876]
[1752073498370,0.75377,2653.0,2652.9,3.2078]
[1752073498872,1.43187,2653.0,2652.9,3.8876]
[1752073500669,2.36417,2653.0,2652.9,3.8876]
[1752073500869,2.36417,2653.0,2652.9,3.2078]
[1752073501871,1.88459,2652.8,2652.5,3.2078]
[1752073502074,1.43198,2652.6,2652.5,3.2078]
[1752073502374,3.49513,2652.6,2652.1,3.2078]
[1752073502671,0.75399,2652.2,2652.1,3.2078]
[1752073502873,0.75399,2652.2,2652.1,6.0205]
[1752073503075,0.75399,2652.2,2652.1,6.77452]
[1752073505171,0.75399,2652.2,2652.1,3.2078]
[1752073505372,0.75399,2652.2,2652.1,3.8876]
[1752073506068,1.43209,2652.2,2652.1,3.8876]
[1752073506267,1.43209,2652.2,2652.1,3.2078]
[1752073506573,1.43209,2652.2,2652.1,3.8876]
[1752073507879,1.43209,2652.2,2652.1,3.2078]
[1752073508080,1.43209,2652.2,2652.1,0.6798]
[1752073508873,0.9323,2652.8,2652.1,6.70525]
[1752073509075,0.75381,2652.9,2652.8,0.7538]
[1752073509276,0.75382,2652.9,2652.8,7.27294248]
[1752073509674,1.43192,2652.9,2652.8,3.2078]
[1752073509979,0.75385,2652.7,2652.6,2.18]
[1752073510273,0.75385,2652.7,2652.6,6.14168]
[1752073510478,2.34,2653.4,2653.0,0.75376]
[1752073510680,2.34,2653.4,2653.0,3.2078]
[1752073510874,5.09178,2653.7,2653.2,0.7537]
[1752073511076,0.75368,2653.3,2653.2,0.75369]
[1752073511279,0.75368,2653.3,2653.2,0.75371]
[1752073511483,1.43268,2653.3,2653.2,0.75371]
[1752073512179,1.43268,2653.3,2653.1,5.20712]
[1752073512180,0.75371,2653.2,2653.1,5.20712]
[1752073512374,0.75371,2653.2,2653.1,4.4534]
[1752073512581,1.43271,2653.2,2653.1,5.1156]
[1752073512977,1.43271,2653.2,2653.1,5.86934]
[1752073513178,0.679,2653.2,2653.1,5.86934]
[1752073513481,1.43271,2653.2,2653.1,5.86934]
[1752073513683,0.679,2653.2,2653.1,5.86934]
[1752073513982,0.7537,2653.3,2653.2,0.75369]
[1752073514175,0.7537,2653.3,2653.2,0.6622]
[1752073514880,1.4327,2653.3,2653.2,0.6622]
[1752073515186,0.7537,2653.3,2653.2,0.6622]
[1752073515483,1.4327,2653.3,2653.2,0.6622]
[1752073515879,0.75371,2653.2,2653.1,2.2355]
[1752073516182,1.43271,2653.2,2653.1,2.8977]
[1752073516382,0.75374,2653.1,2653.0,3.2078]
[1752073516680,0.75374,2653.1,2653.0,3.87]
[1752073517183,0.75374,2653.1,2653.0,4.62377]
[1752073517385,0.75374,2653.1,2653.0,3.87]
[1752073517679,0.75374,2653.1,2653.0,4.62377]
[1752073518881,0.75374,2653.1,2653.0,3.87]
[1752073519081,1.43274,2653.1,2653.0,3.87]
[1752073519477,0.75379,2652.9,2652.8,2.3091]
[1752073519683,0.75382,2652.8,2652.7,3.2078]
[1752073519880,0.75391,2652.6,2652.5,2.2487]
[1752073520186,1.43291,2652.6,2652.5,5.2289]
[1752073520681,0.75387,2652.7,2652.5,6.2362]
[1752073520884,1.01,2653.1,2652.5,6.2362]
[1752073520885,2.18,2653.2,2652.6,7.52643248]
[1752073521083,0.75371,2653.2,2653.1,3.87]
[1752073522091,1.43271,2653.2,2653.1,3.87]
[1752073522291,1.43271,2653.2,2653.1,4.62374]
[1752073522493,0.75371,2653.2,2653.1,5.63104]
[1752073522694,0.75371,2653.2,2653.1,7.93334]
[1752073522896,1.43271,2653.2,2653.1,7.93334]
[1752073523192,1.43271,2653.2,2653.1,5.63104]
[1752073523490,1.43271,2653.2,2653.1,4.2151]
[1752073523690,1.43271,2653.2,2653.1,4.8773]
[1752073524696,1.43271,2653.2,2653.1,5.63104]
[1752073525393,0.679,2653.2,2653.1,5.63104]
[1752073526092,1.43271,2653.2,2653.1,3.2078]
[1752073526492,1.43271,2653.2,2653.1,0.6622]
[1752073526694,1.43271,2653.2,2653.1,3.96146201]
[1752073526894,1.43271,2653.2,2653.1,4.71520201]
[1752073527093,1.43271,2653.2,2653.1,1.50740201]
[1752073527295,1.43271,2653.2,2653.1,0.75366201]
[1752073527494,2.44271,2653.2,2653.1,0.09146201]
[1752073528402,4.63011,2653.2,2653.1,3.29926201]
[1752073528903,4.63011,2653.2,2653.1,3.96146201]
[1752073529102,4.63011,2653.2,2653.1,0.09146201]
[1752073529299,0.75379,2652.9,2652.8,3.2078]
[1752073529494,0.75379,2652.9,2652.8,3.87]
[1752073529700,0.75379,2652.9,2652.8,3.96162]
[1752073529997,0.75378,2653.0,2652.9,0.75377]
[1752073530593,0.75378,2653.0,2652.9,0.75379]
[1752073531099,0.75379,2652.9,2652.8,4.62381]
[1752073531306,0.75378,2653.0,2652.9,0.75376]
[1752073531499,0.75375,2653.1,2653.0,0.75374]
[1752073532100,0.75379,2653.0,2652.9,0.75378]
[1752073532405,0.75379,2653.0,2652.9,0.84524201]
[1752073532701,0.75379,2653.0,2652.9,0.09146201]
[1752073533004,2.44279,2653.0,2652.9,0.75366201]
[1752073533808,2.44279,2653.0,2652.9,1.50745201]
[1752073534208,6.39919,2653.2,2652.9,1.50745201]
[1752073534209,4.5149,2653.2,2653.0,0.75374]
[1752073534411,1.43276,2653.1,2653.0,0.75374]
[1752073534609,1.43276,2653.1,2653.0,4.62374]
[1752073535106,1.43276,2653.1,2653.0,3.96154]
[1752073535309,1.43276,2653.1,2653.0,4.05300201]
[1752073535510,1.43276,2653.1,2653.0,4.71520201]
[1752073535808,1.43276,2653.1,2653.0,3.29926201]
[1752073536312,2.44276,2653.1,2653.0,0.09146201]
[1752073536508,1.43276,2653.1,2653.0,4.05303201]
[1752073537010,1.43276,2653.1,2653.0,4.71523201]
[1752073537609,0.679,2653.1,2653.0,4.71523201]
[1752073537807,0.75354,2653.9,2653.1,1.88435]
[1752073538004,3.59491,2653.9,2653.8,1.41571]
[1752073538202,3.6356807,2653.9,2653.8,1.41571]
[1752073538415,2.8414,2653.9,2653.8,1.41571]
[1752073538713,0.75354,2653.8,2653.7,0.75354]
[1752073539107,1.43254,2653.8,2653.7,1.41574]
[1752073539304,0.75357,2653.7,2653.6,3.96704089]
[1752073539612,0.75356,2653.8,2653.7,0.75355]
[1752073539804,0.75356,2653.8,2653.7,1.41575]
[1752073540009,0.75352,2653.9,2653.8,0.75351]
[1752073540204,0.7535,2654.0,2653.9,0.75349]
[1752073540410,1.4325,2654.0,2653.9,4.62349]
[1752073540712,1.88343,2654.5,2653.9,4.62349]
[1752073540713,3.35781246,2655.0,2653.9,11.51913248]
[1752073541006,0.7532,2655.0,2654.9,3.2078]
[1752073541207,1.3915,2655.0,2654.9,3.2078]
[1752073541412,0.75324,2654.9,2654.5,3.2078]
[1752073541616,0.75326,2654.8,2654.7,0.75327]
[1752073541814,0.75324,2654.9,2654.5,3.2078]
[1752073542010,0.75326,2654.8,2654.6,0.75329]
[1752073542207,3.31133248,2654.9,2654.5,3.2078]
[1752073542412,0.75331,2654.6,2654.5,3.2078]